bitfinex-derivatives/quotes_SOLF0:USTF0_20240911
["timestamp","ask_amount","ask_price","bid_price","bid_amount"]
[1726033076204,3.7922,131.85,131.84,10.48]
[1726033076412,3.7918,131.86,131.84,10.48]
[1726033076610,11.8945,131.92,131.85,10.48]
[1726033076808,2.7083,131.91,131.85,10.48]
[1726033079218,13.1883,131.91,131.85,10.48]
[1726033080011,13.1883,131.91,131.84,14.3256817]
[1726033080211,13.1883,131.91,131.84,10.48]
[1726033080414,13.1883,131.91,131.84,14.28632544]
[1726033081412,2.7083,131.91,131.86,10.48]
[1726033083322,2.7083,131.91,131.87,10.48]
[1726033084123,119.9036396,131.93,131.87,14.32501593]
[1726033084324,13.1437,131.94,131.87,14.32501593]
[1726033086629,3.7908,131.89,131.87,14.32501593]
[1726033086825,10.48,131.92,131.87,3.84501593]
[1726033087018,2.6637,131.94,131.73,3.82187831]
[1726033087019,10.48,131.91,131.85,10.48]
[1726033087432,3.7916,131.87,131.85,10.48]
[1726033087834,3.7916,131.87,131.85,14.21388442]
[1726033088130,3.7917,131.86,131.85,14.21388442]
[1726033089123,3.7914,131.87,131.85,14.21388442]
[1726033091632,3.7914,131.87,131.86,10.48]
[1726033091938,3.7912,131.88,131.86,10.48]
[1726033092638,14.5066,131.95,131.87,10.48]
[1726033092940,10.48,131.94,131.87,10.48]
[1726033093641,10.48,131.93,131.86,10.48]
[1726033093829,10.48,131.91,131.84,10.48]
[1726033094140,2.6987,131.9,131.85,3.74953019]
[1726033094438,3.7916,131.87,131.85,3.74953019]
[1726033096131,10.48,131.94,131.86,10.48]
[1726033096332,13.0561,131.94,131.88,10.48]
[1726033096540,2.5761,131.94,131.89,10.48]
[1726033102039,2.5761,131.94,131.91,10.48]
[1726033102746,2.5761,131.94,131.91,14.2260185]
[1726033103047,1.2805,131.94,131.91,14.2260185]
[1726033103443,1.3279,131.95,131.91,14.2260185]
[1726033105147,2.6106,131.97,131.91,14.2260185]
[1726033106242,13.0906,131.97,131.91,14.2260185]
[1726033108045,2.6106,131.97,131.93,10.48]
[1726033108549,2.6106,131.97,131.92,10.48]
[1726033113242,2.6106,131.97,131.93,10.48]
[1726033114557,7.591,132.04,131.94,10.48]
[1726033114748,10.48,132.02,131.96,10.48]
[1726033116954,10.48,132.02,131.91,3.7460185]
[1726033116955,3.788,131.99,131.97,10.48]
[1726033117352,4.0487,132.03,131.98,10.48]
[1726033118257,4.0487,132.03,131.99,3.88033335]
[1726033119656,3.7879,132.0,131.98,10.48]
[1726033120157,3.7879,132.0,131.98,14.23758116]
[1726033120557,3.7879,131.99,131.98,14.23758116]
[1726033121154,10.48,132.02,131.96,10.48]
[1726033122162,2.7133,132.03,131.97,10.48]
[1726033123059,13.1933,132.03,131.97,10.48]
[1726033123261,10.48,132.01,131.96,10.48]
[1726033125459,13.1933,132.03,131.97,10.48]
[1726033125862,10.48,132.02,131.96,10.48]
[1726033126464,3.7886,131.97,131.96,10.48]
[1726033127768,3.7884,131.98,131.96,10.48]
[1726033127967,13.1933,132.03,131.96,10.48]
[1726033128359,3.7885,131.98,131.96,10.48]
[1726033128579,13.1933,132.03,131.96,10.48]
[1726033128866,3.7895,131.94,131.93,3.69713506]
[1726033129070,14.20328331,131.99,131.92,10.48]
[1726033129263,10.48,131.97,131.92,10.48]
[1726033129461,3.7898,131.93,131.92,10.48]
[1726033130067,3.7894,131.94,131.92,10.48]
[1726033130475,3.9094,131.98,131.92,10.48]
[1726033130674,3.7899,131.93,131.92,10.48]
[1726033133278,3.7894,131.94,131.92,10.48]
[1726033134279,3.7898,131.93,131.91,3.70168258]
[1726033134475,3.7898,131.93,131.92,10.48]
[1726033135168,3.7898,131.93,131.92,14.31489993]
[1726033135974,3.7894,131.94,131.92,14.31489993]
[1726033136375,3.9094,131.98,131.92,14.31489993]
[1726033136582,3.7896,131.93,131.92,14.31489993]
[1726033138676,3.7896,131.94,131.92,14.31489993]
[1726033139277,3.9094,131.98,131.92,14.31489993]
[1726033139477,3.9094,131.98,131.95,10.48]
[1726033139887,7.5743,132.02,131.95,10.48]
[1726033140082,1.3464,132.0,131.95,10.48]
[1726033141377,1.3464,132.0,131.96,10.48]
[1726033142074,1.3464,132.0,131.92,3.75900235]
[1726033142075,1.3464,132.0,131.98,10.48]
[1726033142280,10.48,132.04,131.98,10.48]
[1726033147211,3.7879,131.99,131.98,10.48]
[1726033149384,28.12192897,132.04,131.98,10.48]
[1726033149590,10.48,132.04,131.98,10.48]
[1726033150289,3.7881,131.99,131.98,10.48]
[1726033152290,3.7881,131.99,131.92,3.75900235]
[1726033152291,3.7887,131.97,131.96,10.48]
[1726033152495,10.48,132.01,131.95,10.48]
[1726033152988,13.2282,132.0,131.84,22.85022897]
[1726033153195,14.5742,132.0,131.93,10.48]
[1726033153902,14.5742,132.0,131.93,14.35040545]
[1726033154503,14.5742,132.0,131.94,10.48]
[1726033155897,14.5742,132.0,131.93,3.87040545]
[1726033156097,14.5742,132.0,131.94,10.48]
[1726033156898,4.0942,132.0,131.94,14.29755476]
[1726033157098,14.5742,132.0,131.94,14.29755476]
[1726033157797,14.5742,132.0,131.95,10.48]
[1726033157993,4.0942,132.0,131.95,10.48]
[1726033158701,4.0942,132.0,131.96,10.48]
[1726033159507,4.0942,132.0,131.95,10.48]
[1726033159902,14.5742,132.0,131.94,10.48]
[1726033163408,10.48,131.99,131.92,10.48]
[1726033163798,3.7896,131.94,131.92,10.48]
[1726033163999,10.48,131.99,131.92,10.48]
[1726033164405,4.0942,132.0,131.83,16.5873691]
[1726033164406,10.48,131.96,131.83,16.5873691]
[1726033164704,14.6162,131.95,131.84,22.85690478]
[1726033164910,3.791,131.89,131.87,10.48]
[1726033165998,10.48,131.93,131.87,10.48]
[1726033165999,3.7911,131.88,131.87,10.48]
[1726033166809,3.7909,131.89,131.87,10.48]
[1726033167212,4.1362,131.95,131.87,10.48]
[1726033167412,3.7908,131.9,131.87,10.48]
[1726033167714,10.48,131.94,131.87,10.48]
[1726033167915,3.7911,131.88,131.87,10.48]
[1726033168814,3.7915,131.87,131.86,10.48]
[1726033169710,3.7915,131.87,131.86,14.18308054]
[1726033169913,3.7912,131.88,131.86,14.18308054]
[1726033171115,3.7914,131.87,131.86,3.70308054]
[1726033171320,3.7914,131.87,131.86,10.48]
[1726033171520,10.48,131.92,131.86,14.23616587]
[1726033171707,10.48,131.93,131.87,10.48]
[1726033172617,3.7907,131.9,131.88,10.48]
[1726033173623,14.6162,131.95,131.88,10.48]
[1726033173624,3.7908,131.89,131.88,10.48]
[1726033174707,14.6162,131.95,131.87,10.48]
[1726033174708,3.7912,131.88,131.87,10.48]
[1726033177417,3.7909,131.89,131.87,10.48]
[1726033179024,10.48,131.93,131.87,10.48]
[1726033180221,3.7911,131.88,131.87,10.48]
[1726033181627,3.791,131.89,131.87,10.48]
[1726033183626,3.7911,131.88,131.87,10.48]
[1726033183828,10.48,131.92,131.86,3.82109813]
[1726033184010,10.48,131.92,131.85,10.48]
[1726033184215,3.7914,131.88,131.85,10.48]
[1726033184623,3.7914,131.88,131.86,3.80280621]
[1726033187418,3.7914,131.88,131.87,10.48]
[1726033187629,3.7914,131.88,131.87,14.3098195]
[1726033188420,10.48,131.94,131.87,14.3098195]
[1726033188622,10.48,131.94,131.88,10.48]
[1726033188821,3.791,131.89,131.87,10.48]
[1726033189028,3.791,131.89,131.88,3.87296169]
[1726033189820,3.7911,131.88,131.87,10.48]
[1726033190224,3.7911,131.88,131.87,14.22554417]
[1726033192716,3.7911,131.88,131.87,3.74554417]
[1726033192919,3.7911,131.88,131.85,10.48]
[1726033193119,3.7922,131.85,131.84,3.75009897]
[1726033193317,3.7922,131.85,131.82,10.48]
[1726033193539,3.7923,131.84,131.82,10.48]
[1726033193926,3.7923,131.84,131.82,14.24678293]
[1726033195127,3.792,131.85,131.82,14.24678293]
[1726033197028,10.48,131.89,131.82,14.24678293]
[1726033197627,10.48,131.89,131.84,10.48]
[1726033199130,3.7917,131.86,131.84,10.48]
[1726033201032,3.7915,131.87,131.84,10.48]
[1726033201934,10.48,131.93,131.85,10.48]
[1726033202126,10.48,131.93,131.87,10.48]
[1726033202926,3.7911,131.88,131.87,14.18363346]
[1726033203137,10.48,131.93,131.87,14.18363346]
[1726033203341,10.48,131.9,131.84,10.48]
[1726033204040,3.7915,131.87,131.85,3.74838807]
[1726033205135,3.7912,131.88,131.86,10.48]
[1726033206039,3.7909,131.89,131.87,3.87476418]
[1726033206240,11.44178726,131.95,131.87,14.35476418]
[1726033206441,10.48,131.94,131.87,14.35476418]
[1726033206744,3.7907,131.9,131.87,14.35476418]
[1726033206931,10.48,131.94,131.87,14.35476418]
[1726033207537,3.7908,131.9,131.87,14.35476418]
[1726033209637,10.48,131.88,131.81,22.86380483]
[1726033209844,10.48,131.83,131.7,10.21346244]
[1726033210041,2.7913,131.89,131.64,37.94534809]
[1726033210042,10.48,131.8,131.71,22.87240351]
[1726033210242,10.48,131.8,131.74,10.48]
[1726033210542,3.7944,131.77,131.74,14.22895714]
[1726033211135,3.7947,131.76,131.69,16.59991299]
[1726033211339,3.7947,131.76,131.72,10.48]
[1726033212034,10.48,131.78,131.73,3.75256166]
[1726033212342,16.41,131.78,131.65,6.38645055]
[1726033212541,16.41,131.78,131.67,16.41]
[1726033213445,16.41,131.78,131.67,20.24415559]
[1726033214242,16.41,131.78,131.67,16.41]
[1726033214740,16.41,131.78,131.67,20.14168965]
[1726033215249,16.41,131.78,131.68,3.7968]
[1726033215541,3.80001476,131.8,131.67,20.14168965]
[1726033215542,16.41,131.76,131.67,23.93878965]
[1726033215742,2.6957,131.75,131.67,20.14168965]
[1726033215948,2.6957,131.75,131.67,3.73168965]
[1726033216148,1.4148,131.74,131.66,3.7972]
[1726033216448,1.4148,131.74,131.66,3.73320799]
[1726033216745,1.4148,131.74,131.67,3.7969]
[1726033216950,1.4148,131.74,131.68,3.80570852]
[1726033217147,1.4148,131.74,131.67,3.7969]
[1726033217349,1.4148,131.74,131.68,3.81823479]
[1726033217937,1.4148,131.74,131.68,7.61503479]
[1726033218138,1.4148,131.74,131.68,3.7968]
[1726033219253,1.4148,131.74,131.69,3.85800444]
[1726033219546,1.4148,131.74,131.66,20.2073]
[1726033219747,1.4148,131.74,131.66,16.41]
[1726033220350,1.4148,131.74,131.67,3.797]
[1726033220749,1.4148,131.74,131.66,20.19094305]
[1726033220951,1.4148,131.74,131.66,23.98824305]
[1726033221151,17.8248,131.74,131.66,3.78094305]
[1726033221349,17.8248,131.74,131.65,3.7976]
[1726033221656,17.8248,131.74,131.65,7.65779561]
[1726033222649,17.8248,131.74,131.65,3.7976]
[1726033223058,17.8248,131.74,131.65,7.56820019]
[1726033225759,17.8248,131.74,131.66,3.7974]
[1726033227453,17.8248,131.74,131.67,3.7971]
[1726033227653,1.4148,131.74,131.67,3.7971]
[1726033228856,1.4148,131.74,131.68,16.41]
[1726033229956,1.4148,131.74,131.68,20.2067]
[1726033231452,1.4148,131.74,131.68,16.41]
[1726033231958,1.4148,131.74,131.68,20.2068]
[1726033232156,1.4148,131.74,131.69,10.51]
[1726033232561,1.4148,131.74,131.7,10.51]
[1726033233062,1.4148,131.74,131.69,10.51]
[1726033233361,11.9248,131.74,131.69,10.51]
[1726033233556,1.4148,131.74,131.69,10.51]
[1726033233746,1.4148,131.74,131.69,14.3064]
[1726033233951,1.4148,131.74,131.69,10.51]
[1726033234351,13.2057,131.75,131.7,10.51]
[1726033234352,2.6957,131.75,131.7,10.51]
[1726033235155,2.6957,131.75,131.71,3.87851176]
[1726033236157,2.6957,131.75,131.7,10.51]
[1726033236756,2.6957,131.75,131.7,14.33422171]
[1726033237667,2.6957,131.75,131.69,10.51]
[1726033237872,2.6957,131.75,131.7,10.51]
[1726033238461,13.2057,131.75,131.69,3.82582647]
[1726033238760,13.2057,131.75,131.68,10.51]
[1726033238961,13.2057,131.75,131.69,3.81026353]
[1726033239166,2.6957,131.75,131.7,10.51]
[1726033240266,2.6957,131.75,131.69,3.75826053]
[1726033240464,2.6957,131.75,131.7,10.51]
[1726033240773,2.6957,131.75,131.7,14.3062]
[1726033240969,2.6957,131.75,131.7,10.51]
[1726033250172,2.6957,131.75,131.7,14.3061]
[1726033250866,2.6957,131.75,131.69,3.75826053]
[1726033250867,2.6957,131.75,131.71,10.51]
[1726033251062,2.6957,131.75,131.69,10.51]
[1726033251267,13.2057,131.75,131.7,3.81473044]
[1726033251667,13.2057,131.75,131.68,10.51]
[1726033252273,13.2057,131.75,131.68,14.3551025]
[1726033252469,13.2057,131.75,131.69,10.51]
[1726033252470,2.6957,131.75,131.69,10.51]
[1726033252772,11.8982,131.78,131.71,10.51]
[1726033253165,11.8982,131.78,131.71,14.3059]
[1726033253567,11.8982,131.78,131.72,14.35319954]
[1726033255574,2.6643,131.79,131.72,14.35319954]
[1726033255575,13.1743,131.79,131.72,14.35319954]
[1726033255769,13.1743,131.79,131.74,10.51]
[1726033256466,2.6643,131.79,131.75,10.51]
[1726033256873,10.51,131.81,131.75,10.51]
[1726033258072,13.174,131.82,131.75,14.3047]
[1726033258273,2.664,131.82,131.77,10.51]
[1726033258573,1.2959,131.82,131.77,10.51]
[1726033259076,1.2959,131.82,131.77,14.3042]
[1726033259273,11.8808,131.86,131.78,10.51]
[1726033259973,11.8808,131.86,131.79,3.70910195]
[1726033260468,11.8808,131.86,131.78,14.3038]
[1726033260975,10.51,131.84,131.78,14.35475301]
[1726033261375,10.51,131.84,131.78,3.84475301]
[1726033261680,10.51,131.84,131.77,10.51]
[1726033262075,10.51,131.84,131.78,3.8587905]
[1726033264971,10.51,131.83,131.77,10.51]
[1726033265174,10.51,131.82,131.76,3.72486531]
[1726033265380,11.8742,131.82,131.75,10.51]
[1726033265782,11.8742,131.82,131.76,10.51]
[1726033265976,11.8742,131.82,131.76,14.30998482]
[1726033268177,1.3642,131.82,131.76,14.30998482]
[1726033268476,11.8742,131.82,131.76,14.30998482]
[1726033268882,11.7924,131.81,131.76,3.79998482]
[1726033269084,11.7924,131.81,131.75,10.51]
[1726033269584,11.7924,131.81,131.76,3.86810351]
[1726033270087,1.2824,131.81,131.75,14.23619636]
[1726033271175,10.51,131.8,131.75,3.72619636]
[1726033271485,10.51,131.8,131.73,10.51]
[1726033271780,2.6853,131.81,131.72,14.31776975]
[1726033271781,10.51,131.78,131.72,14.31776975]
[1726033272195,10.51,131.77,131.72,14.31776975]
[1726033272787,10.51,131.78,131.72,14.31776975]
[1726033273581,2.6853,131.81,131.72,14.31776975]
[1726033273786,10.51,131.8,131.74,10.51]
[1726033274584,2.6853,131.81,131.74,14.27138779]
[1726033274782,10.51,131.8,131.74,10.51]
[1726033275284,10.51,131.79,131.73,10.51]
[1726033275485,10.51,131.79,131.74,3.8536289]
[1726033276477,10.51,131.79,131.73,10.51]
[1726033276674,10.51,131.79,131.73,14.24291831]
[1726033277180,2.6853,131.81,131.75,10.51]
[1726033277688,1.2824,131.81,131.77,10.51]
[1726033277890,1.3642,131.82,131.77,10.51]
[1726033280989,3.7937,131.79,131.77,10.51]
[1726033281496,10.51,131.81,131.73,3.73291831]
[1726033281789,10.51,131.81,131.61,19.21672002]
[1726033281790,3.7941,131.78,131.74,16.91696658]
[1726033281982,3.7941,131.78,131.75,6.40696658]
[1726033282189,3.7943,131.77,131.74,14.25326477]
[1726033282386,10.51,131.78,131.61,6.0939361]
[1726033282683,10.51,131.74,131.68,10.51]
[1726033282887,10.51,131.74,131.69,6.40835472]
[1726033283084,10.51,131.74,131.68,10.51]
[1726033283284,3.7962,131.71,131.69,6.40945517]
[1726033283492,3.7962,131.71,131.68,10.51]
[1726033283883,10.51,131.74,131.67,3.76926581]
[1726033284189,16.42,131.75,131.68,6.40974783]
[1726033284380,16.42,131.75,131.65,20.21811707]
[1726033284583,3.796,131.72,131.66,6.40975416]
[1726033284782,3.796,131.72,131.67,6.40975416]
[1726033284986,2.6603,131.74,131.68,6.40975416]
[1726033285182,2.6603,131.74,131.65,20.21811707]
[1726033285383,2.6603,131.74,131.66,6.40968707]
[1726033285588,2.6603,131.74,131.67,6.40968707]
[1726033285789,2.6603,131.74,131.65,20.21811707]
[1726033285995,20.4465,131.74,131.66,6.41054786]
[1726033286289,20.4465,131.74,131.65,3.79811707]
[1726033286290,3.7966,131.69,131.65,3.79811707]
[1726033286487,3.7966,131.69,131.63,16.42]
[1726033286688,3.7966,131.69,131.64,6.4110807]
[1726033286893,3.7966,131.69,131.65,6.4110807]
[1726033287087,3.7964,131.7,131.66,6.4110807]
[1726033287297,20.4465,131.74,131.63,20.17161363]
[1726033287488,20.4465,131.74,131.64,6.4110837]
[1726033287689,24.24671262,131.74,131.65,6.4110837]
[1726033287886,24.24671262,131.74,131.63,20.17161363]
[1726033288082,24.24671262,131.74,131.64,6.41137194]
[1726033288394,24.24671262,131.74,131.65,6.41137194]
[1726033288596,24.24671262,131.74,131.63,3.75161363]
[1726033288597,16.42,131.72,131.63,3.75161363]
[1726033288895,16.42,131.72,131.6,6.0996973]
[1726033289089,7.82671262,131.74,131.61,22.83200512]
[1726033289288,16.42,131.72,131.62,6.41200512]
[1726033289490,16.42,131.72,131.63,6.41200512]
[1726033289697,16.42,131.72,131.61,16.42]
[1726033289991,16.42,131.72,131.62,6.41214791]
[1726033290288,16.42,131.72,131.63,6.41214791]
[1726033290490,16.42,131.72,131.62,3.7984]
[1726033290695,16.42,131.72,131.63,6.41204008]
[1726033290890,16.42,131.72,131.61,20.29327153]
[1726033291093,16.42,131.72,131.62,6.41203124]
[1726033291388,16.42,131.72,131.63,6.41203124]
[1726033291591,16.42,131.72,131.61,20.29327153]
[1726033291795,16.42,131.72,131.62,6.41164149]
[1726033291993,20.4465,131.74,131.63,22.83164149]
[1726033292198,20.4465,131.74,131.64,6.41164149]
[1726033292400,20.4465,131.74,131.66,3.7972]
[1726033292999,20.4465,131.74,131.63,16.42]
[1726033293502,20.4465,131.74,131.66,3.7972]
[1726033294004,4.0265,131.74,131.63,16.42]
[1726033294196,4.0265,131.74,131.66,3.7972]
[1726033295199,4.0265,131.74,131.67,3.7971]
[1726033296789,4.0265,131.74,131.68,7.61210798]
[1726033296993,4.0265,131.74,131.7,16.42]
[1726033298101,2.6603,131.74,131.7,16.42]
[1726033299494,2.6603,131.74,131.68,7.61200798]
[1726033299696,2.6603,131.74,131.68,24.03200798]
[1726033299896,2.6603,131.74,131.69,3.7965]
[1726033300594,2.6603,131.74,131.68,24.03200798]
[1726033301099,3.7964,131.7,131.62,16.42]
[1726033301291,17.742,131.73,131.63,6.41108665]
[1726033301498,1.322,131.73,131.64,6.41108665]
[1726033301699,3.7965,131.7,131.65,6.4109661]
[1726033301996,1.322,131.73,131.64,16.42]
[1726033302196,3.7967,131.69,131.64,16.42]
[1726033302700,1.322,131.73,131.64,16.42]
[1726033303101,1.322,131.73,131.61,3.87327153]
[1726033303102,17.742,131.73,131.62,16.42]
[1726033303300,17.742,131.73,131.62,22.83138758]
[1726033303601,17.742,131.73,131.62,16.42]
[1726033303803,3.7974,131.67,131.63,6.41153668]
[1726033303995,3.7974,131.67,131.62,20.18955795]
[1726033304197,3.7974,131.67,131.63,6.41153753]
[1726033304395,3.7974,131.67,131.62,20.18955795]
[1726033304798,3.7974,131.67,131.63,6.4113998]
[1726033305004,3.7974,131.67,131.62,20.18955795]
[1726033305206,3.7974,131.67,131.63,6.41126452]
[1726033305401,3.7974,131.67,131.62,20.18955795]
[1726033305607,3.7974,131.67,131.63,6.41126452]
[1726033305907,3.7974,131.67,131.62,20.18955795]
[1726033306107,3.797,131.68,131.63,6.41126452]
[1726033306294,3.797,131.68,131.62,20.18955795]
[1726033306606,3.797,131.68,131.63,6.41108025]
[1726033306803,3.797,131.68,131.62,20.18955795]
[1726033307213,3.7966,131.69,131.65,16.42]
[1726033307402,1.322,131.73,131.65,16.42]
[1726033307605,1.322,131.73,131.63,16.42]
[1726033307799,5.03421327,131.73,131.63,16.42]
[1726033308310,3.7971,131.67,131.63,20.1777852]
[1726033310108,3.7971,131.67,131.64,10.5]
[1726033311004,3.797,131.68,131.64,10.5]
[1726033311907,3.7972,131.67,131.64,10.5]
[1726033312110,10.5,131.72,131.64,10.5]
[1726033312409,3.7969,131.68,131.64,10.5]
[1726033313114,3.7967,131.69,131.66,10.5]
[1726033313813,3.7965,131.7,131.66,10.5]
[1726033314010,10.5,131.72,131.66,10.5]
[1726033315709,1.322,131.73,131.67,10.5]
[1726033315923,1.322,131.73,131.69,10.5]
[1726033316124,2.6603,131.74,131.69,14.25702567]
[1726033316618,2.6603,131.74,131.7,10.5]
[1726033320325,2.6603,131.74,131.69,3.75702567]
[1726033320513,2.6603,131.74,131.69,10.5]
[1726033320817,1.3636,131.77,131.72,10.5]
[1726033324619,1.3636,131.77,131.71,3.83219438]
[1726033324826,11.8636,131.77,131.7,10.5]
[1726033325125,10.5,131.75,131.7,3.86833987]
[1726033325323,10.5,131.74,131.65,6.4094226]
[1726033325625,10.5,131.74,131.67,10.5]
[1726033326228,10.5,131.72,131.67,10.5]
[1726033326619,10.5,131.72,131.67,14.21764505]
[1726033328222,2.7027,131.73,131.67,3.71764505]
[1726033328425,2.7027,131.73,131.64,16.39]
[1726033328932,2.7027,131.73,131.64,20.0933052]
[1726033333430,2.7027,131.73,131.65,6.4109685]
[1726033333631,2.7027,131.73,131.64,20.0933052]
[1726033333835,2.7027,131.73,131.65,6.4109685]
[1726033334028,2.7027,131.73,131.64,20.0933052]
[1726033334222,2.7027,131.73,131.65,6.4109685]
[1726033334434,2.7027,131.73,131.64,20.0933052]
[1726033334731,2.7027,131.73,131.65,6.41092783]
[1726033334935,2.7027,131.73,131.64,20.0933052]
[1726033335129,2.7027,131.73,131.65,6.41092783]
[1726033335328,2.7027,131.73,131.64,20.0933052]
[1726033335532,2.7027,131.73,131.65,6.4109685]
[1726033335834,2.7027,131.73,131.64,20.0933052]
[1726033336332,2.7027,131.73,131.65,6.4109685]
[1726033336533,2.7027,131.73,131.64,20.0933052]
[1726033336730,2.7027,131.73,131.65,6.4109685]
[1726033337034,2.7027,131.73,131.64,20.0933052]
[1726033337225,2.7027,131.73,131.65,6.4109685]
[1726033337425,2.7027,131.73,131.64,20.0933052]
[1726033337732,2.7027,131.73,131.65,6.4109685]
[1726033337939,2.7027,131.73,131.66,3.7974]
[1726033340532,2.7027,131.73,131.64,20.0933052]
[1726033340836,2.7027,131.73,131.65,6.4109685]
[1726033341133,2.7027,131.73,131.66,6.4109685]
[1726033341335,2.7027,131.73,131.64,20.0933052]
[1726033341636,2.7027,131.73,131.65,6.41084484]
[1726033341928,2.7027,131.73,131.66,6.41084484]
[1726033342134,2.7027,131.73,131.64,20.0933052]
[1726033342436,2.7027,131.73,131.65,6.41060813]
[1726033342733,2.7027,131.73,131.66,6.41060813]
[1726033342935,2.7027,131.73,131.67,6.41060813]
[1726033343236,2.7027,131.73,131.64,20.0933052]
[1726033343532,2.7027,131.73,131.65,6.41087865]
[1726033343838,2.7027,131.73,131.66,6.41087865]
[1726033344035,2.7027,131.73,131.67,6.41087865]
[1726033344232,2.7027,131.73,131.64,20.0933052]
[1726033344434,2.7027,131.73,131.65,6.41057432]
[1726033344735,2.7027,131.73,131.66,6.41057432]
[1726033344930,2.7027,131.73,131.67,6.41057432]
[1726033345229,2.7027,131.73,131.64,20.0933052]
[1726033345433,2.7027,131.73,131.65,6.41060813]
[1726033345732,2.7027,131.73,131.64,20.0933052]
[1726033345936,2.7027,131.73,131.65,6.41060813]
[1726033346233,2.7027,131.73,131.66,6.41060813]
[1726033346532,2.7027,131.73,131.67,6.41060813]
[1726033346733,2.7027,131.73,131.64,20.0933052]
[1726033346922,2.7027,131.73,131.65,6.41060813]
[1726033347127,2.7027,131.73,131.66,6.41060813]
[1726033347432,2.7027,131.73,131.67,6.41060813]
[1726033347633,2.7027,131.73,131.64,20.0933052]
[1726033347834,2.7027,131.73,131.65,6.41087865]
[1726033348026,19.0927,131.73,131.66,6.41087865]
[1726033348228,10.5,131.7,131.67,6.41087865]
[1726033348430,10.5,131.7,131.63,10.5]
[1726033348630,10.5,131.7,131.64,12.50915289]
[1726033348931,10.5,131.7,131.65,6.41087865]
[1726033349126,10.5,131.7,131.66,6.41087865]
[1726033349329,10.5,131.7,131.67,6.41087865]
[1726033349533,10.5,131.7,131.68,6.41087865]
[1726033349839,10.5,131.7,131.65,6.09833958]
[1726033350041,10.5,131.7,131.66,6.41105834]
[1726033350226,10.5,131.7,131.67,6.41105834]
[1726033350430,10.5,131.7,131.68,6.41105834]
[1726033350638,10.5,131.7,131.65,6.09851926]
[1726033350830,10.5,131.7,131.66,6.41105834]
[1726033351031,10.5,131.7,131.67,6.41105834]
[1726033351235,10.5,131.7,131.68,6.41105834]
[1726033351439,10.5,131.7,131.69,6.41105834]
[1726033352040,10.5,131.72,131.69,6.41105834]
[1726033352238,2.7027,131.73,131.67,10.5]
[1726033352541,2.7027,131.73,131.68,6.4105183]
[1726033352844,2.7027,131.73,131.69,6.4105183]
[1726033353044,2.7027,131.73,131.7,6.4105183]
[1726033353238,2.7027,131.73,131.67,10.5]
[1726033353438,2.7027,131.73,131.68,6.41040881]
[1726033353639,2.7027,131.73,131.69,6.41040881]
[1726033353839,2.7027,131.73,131.7,6.41040881]
[1726033354050,2.7027,131.73,131.62,3.86960814]
[1726033354234,10.5,131.72,131.65,10.5]
[1726033354439,10.5,131.72,131.66,12.50847322]
[1726033354638,10.5,131.72,131.67,6.41045373]
[1726033354840,10.5,131.72,131.68,6.41045373]
[1726033355040,10.5,131.72,131.69,6.41045373]
[1726033355349,10.5,131.72,131.65,14.33049479]
[1726033355540,10.5,131.72,131.66,6.09831594]
[1726033355847,10.5,131.72,131.67,6.4109685]
[1726033356047,10.5,131.72,131.68,6.4109685]